[Event "III Menorca Open-A 2024"]
[Site "Ciutadella Menorca"]
[Date "2024.04.06"]
[Round "8.1"]
[White "Erigaisi Arjun"]
[Black "Aryan Chopra"]
[Result "1-0"]
[ECO "D41"]
[WhiteElo "2748"]
[BlackElo "2630"]
[Annotator "TA"]
[PlyCount "113"]
[EventDate "2024.04.02"]
[EventType "swiss"]
[EventCountry "ESP"]
[SourceTitle "playchess.com"]
[Source "ChessBase"]
[SourceQuality "1"]
[TimeControl "5400+30"]

{[%evp 32,113,0,0,0,0,16,13,16,23,56,16,32,22,63,23,63,71,79,66,108,79,75,88,77,85,82,66,91,76,94,113,137,148,143,128,145,143,143,149,149,147,156,131,157,160,144,131,142,147,247,230,244,247,258,236,258,214,239,208,219,184,414,422,635,609,508,495,647,595,1454,1318,6219,6037,29979,29980,29988,29989,29989,29990,29993,29991,29993,29992]} 1. d4 {[%emt 0:00:30]} Nf6 {[%emt 0:00:04]} 2. c4 {[%emt 1:31:00]} e6 {[%emt 0:00:04]} 3. Nf3 {[%emt 0:00:00]} d5 {[%emt 0:00:12]} 4. Nc3 {[%emt 0:00:00]} c5 {[%emt 0:00:22]} 5. cxd5 {[%emt 0:00:00]} Nxd5 {[%emt 0:00:05]} 6. e4 {[%emt 0:00:00]} Nxc3 {[%emt 0:00:30]} 7. bxc3 {[%emt 0:00:00]} cxd4 {[%emt 0:00:00]} 8. cxd4 {[%emt 0:00:00]} Bb4+ {[%emt 0:00:00]} 9. Bd2 {[%emt 0:00:00]} Bxd2+ {[%emt 0:00:00]} 10. Qxd2 {[%emt 0:00:00]} O-O {[%emt 0:00:00]} 11. Bc4 {[%emt 0:00:00]} Nd7 {[%emt 0:00:14]} 12. O-O {[%emt 0:00:00] D41: Queen's Gambit Declined: Semi-Tarrasch with 5 cxd5.} b6 {[%emt 0:00:06]} 13. Rac1 {[%emt 0:00:00]} Bb7 {[%emt 0:00:25]} 14. d5 {[%emt 0:00:00]} Nc5 {[%emt 0:06:29]} 15. Rfe1 {[%emt 0:00:00]} Qf6 {[%emt 0:09:45]} 16. Qe3 {[%emt 0:00:00]} Rad8 {[%emt 0:17:48]} 17. Rcd1 {[%emt 0:00:00]} exd5 {[%emt 0:08:19]} 18. exd5 {[%emt 0:00:00]} Rd6 $146 {[%emt 0:02:39]} ({Predecessor:} 18... h6 19. Ne5 Rd6 20. Rd4 Qg5 21. f4 Qf5 22. g4 Qc8 23. h3 Re8 24. Qd2 Red8 {½-½ Kaszowski,D (2299)-Hnydiuk,A (2366) POL-chT 1st League 2006 (3)}) 19. h3 {[%emt 0:00:00]} h6 {[%emt 0:00:49]} 20. Rd4 {[%emt 0:00:00]} a6 {[%emt 0:08:09]} 21. a3 {[%emt 0:00:00]} Qd8 {[%emt 0:07:20]} 22. Ba2 {[%emt 0:00:00]} Qc7 {[%emt 0:09:49]} (22... Bxd5 $2 {too greedy.} 23. Qe5 Bxa2 24. Rxd6 $18) 23. Qe5 {[%emt 0:00:00]} Bc8 {[%emt 0:02:55]} 24. Qg3 {[%emt 0:00:00]} Qd8 {[%emt 0:07:35]} 25. Ne5 {[%emt 0:00:00]} Qg5 {[%emt 0:00:30]} 26. Qxg5 {[%emt 0:00:00]} (26. Qf3 {keeps more tension.} Rf6 27. Qc3 Re8 28. h4) 26... hxg5 {[%emt 0:03:09]} 27. Nc4 {[%emt 0:00:00]} Rf6 {[%emt 0:00:30]} 28. Re7 {[%emt 0:00:00]} Rd8 {[%emt 0:00:30]} 29. Ne5 {[%emt 0:00:00]} Kf8 {[%emt 0:00:30] [#]} 30. Rc7 $1 {[%emt 0:00:00]} Bd7 {[%emt 0:00:30]} 31. d6 {[%emt 0:00:00]} Rf5 {[%emt 0:00:30]} 32. Nxd7+ {[%emt 0:00:00]} Nxd7 {[%emt 0:00:30] [#]} 33. Re4 $1 {[%emt 0:00:00]} Nc5 {[%emt 0:00:30]} 34. Ree7 {[%emt 0:00:00]} Rxd6 {[%emt 0:00:30]} 35. Rxf7+ {[%emt 0:00:00]} ({But not} 35. Bxf7 $6 Nd7 36. Rcxd7 (36. Rexd7 Rxd7 37. Rxd7 Rxf7 $14) 36... Rxd7 37. Rxd7 Rxf7 $14) 35... Rxf7 {[%emt 0:00:30]} 36. Rxf7+ {[%emt 0:00:00]} Ke8 {[%emt 0:00:30]} 37. Rxg7 {[%emt 0:00:00]} Rd1+ {[%emt 0:00:30]} 38. Kh2 {[%emt 0:00:00]} Rd2 {[%emt 0:00:30]} 39. Bc4 Rxf2 {[%emt 0:13:17]} 40. Rxg5 {[%emt 0:00:00]} Rf4 {[%emt 0:01:24]} (40... Ke7 $16 41. Bd5 Kf6) 41. Bd5 $18 {[%emt 0:00:44]} Rd4 {[%emt 0:00:47]} 42. g4 {[%emt 0:06:39]} Rd2+ {[%emt 0:00:10]} 43. Kg1 {[%emt 0:00:05]} Rd1+ {[%emt 0:01:23]} 44. Kg2 {[%emt 0:01:28]} Rd2+ {[%emt 0:00:04]} 45. Kf1 {[%emt 0:00:05]} Ke7 {[%emt 0:01:51]} 46. h4 {[%emt 0:00:07]} Kf6 $2 {[%emt 0:00:43]} (46... Kd6) 47. Rf5+ $18 {[%emt 0:00:16]} Kg6 {[%emt 0:00:24]} (47... Kg7 $142 48. h5 Kh6) 48. h5+ $18 {[%emt 0:00:32]} Kh6 {[%emt 0:00:04]} 49. Bf3 {[%emt 0:00:04]} Kg7 {[%emt 0:00:29]} 50. g5 {[%emt 0:00:16]} a5 {[%emt 0:00:57]} 51. Rf6 {[%emt 0:01:30]} b5 {[%emt 0:00:21]} 52. h6+ {[%emt 0:00:08]} Kh7 {[%emt 0:00:04]} 53. Bg4 {[%emt 0:01:00]} Rd8 {[%emt 0:00:47]} 54. Bf5+ {[%emt 0:00:11]} Kg8 {[%emt 0:00:07]} 55. g6 {[%emt 0:00:06]} b4 {[%emt 0:00:07]} 56. axb4 {[%emt 0:00:05]} axb4 {[%emt 0:00:04]} 57. h7+ {[%emt 0:00:39]} 1-0

[Event "III Menorca Open-A 2024"]
[Site "Ciutadella Menorca"]
[Date "2024.04.06"]
[Round "8.2"]
[White "Warmerdam, Max"]
[Black "Dardha, Daniel"]
[Result "1/2-1/2"]
[ECO "B13"]
[WhiteElo "2628"]
[BlackElo "2628"]
[Annotator "TA"]
[PlyCount "44"]
[EventDate "2024.04.02"]
[EventType "swiss"]
[EventCountry "ESP"]
[SourceTitle "playchess.com"]
[Source "ChessBase"]
[SourceQuality "1"]
[TimeControl "5400+30"]

{[%evp 9,44,18,21,22,18,18,18,16,20,23,32,27,21,2,20,12,12,14,23,0,6,-12,-21,-27,-14,-21,-18,-13,-5,-6,0,-11,-10,-17,0,0,0]} 1. e4 {[%emt 0:00:39]} c6 {[%emt 0:00:11]} 2. d4 {[%emt 0:00:22]} d5 {[%emt 0:00:04]} 3. exd5 {[%emt 0:00:07]} cxd5 {[%emt 0:00:06]} 4. Nf3 {[%emt 0:00:29]} Nc6 {[%emt 0:00:42]} 5. Bb5 {[%emt 0:00:53]} e6 {[%emt 0:02:54]} 6. O-O {[%emt 0:01:52]} Bd6 {[%emt 0:00:50]} 7. Re1 {[%emt 0:00:36]} Nge7 {[%emt 0:01:32]} 8. Bd3 {[%emt 0:05:48]} Nb4 {[%emt 0:14:05]} 9. Bf1 {[%emt 0:01:23]} O-O {[%emt 0:00:59]} 10. a3 {[%emt 0:06:55]} Nbc6 {[%emt 0:00:06]} 11. b3 {[%emt 0:00:05]} a6 {[%emt 0:08:24]} 12. Nbd2 {[%emt 0:10:27]} b5 {[%emt 0:06:09]} 13. Bb2 {[%emt 0:05:06]} Qc7 {[%emt 0:02:42]} 14. Bd3 {[%emt 0:04:43]} b4 {[%emt 0:05:54]} 15. Bf1 {[%emt 0:01:19]} bxa3 {[%emt 0:03:33]} 16. Bxa3 {[%emt 0:00:16]} Bxa3 {[%emt 0:00:10]} 17. Rxa3 {[%emt 0:00:05] The position is equal.} Nb4 {[%emt 0:03:24]} 18. c4 {[%emt 0:03:15]} a5 {[%emt 0:05:51]} 19. Qc1 {[%emt 0:06:02]} Nec6 {[%emt 0:04:06]} 20. Qc3 {[%emt 0:00:57]} Ba6 {[%emt 0:04:09]} 21. g3 {[%emt 0:05:17]} Rfe8 {[%emt 0:02:10]} 22. Raa1 {[%emt 0:13:24]} Rad8 {[%emt 0:04:17] Not much happened in this game.   Weighted Error Value: White=0.06 (flawless) /Black=0.05 (flawless) .  OK:         	White=4     	Black=7} 1/2-1/2

[Event "III Menorca Open-A 2024"]
[Site "Ciutadella Menorca"]
[Date "2024.04.06"]
[Round "8.3"]
[White "Fedoseev, Vladimir"]
[Black "Fernandez, Daniel Howard"]
[Result "1-0"]
[ECO "C55"]
[WhiteElo "2690"]
[BlackElo "2528"]
[Annotator "TA"]
[PlyCount "125"]
[EventDate "2024.04.02"]
[EventType "swiss"]
[EventCountry "ESP"]
[SourceTitle "playchess.com"]
[Source "ChessBase"]
[SourceQuality "1"]
[TimeControl "5400+30"]

{[%evp 54,125,50,38,58,43,48,19,64,53,89,77,90,95,90,91,80,75,83,92,100,43,121,115,161,153,181,120,159,94,107,101,95,87,87,103,161,145,216,207,343,216,352,350,354,337,376,332,378,359,452,427,527,506,489,502,572,597,743,729,1222,1182,1466,1505,2000,1766,2116,2167,5927,3967,29986,29987,29987,29988]} 1. e4 {[%emt 0:00:24]} e5 {[%emt 0:10:20]} 2. Bc4 {[%emt 0:00:31]} Nc6 {[%emt 0:01:40]} 3. Nf3 {[%emt 0:01:34]} Be7 {[%emt 0:01:36]} 4. d3 {[%emt 0:03:44]} d6 {[%emt 0:02:13]} 5. a3 {[%emt 0:01:00]} Nf6 {[%emt 0:04:32]} 6. Nc3 {[%emt 0:00:09]} Be6 {[%emt 0:01:04] C55: Two Knights: 4 d3, 4 d4 exd4 5 e5 and Max Lange Attack.} 7. Nd5 {[%emt 0:03:32]} Nd4 {[%emt 0:09:14]} 8. Ng5 $146 {[%emt 0:05:03]} ({Predecessor:} 8. Nxd4 exd4 9. Nxf6+ Bxf6 10. Bxe6 fxe6 11. Qh5+ Kd7 12. f4 c6 13. O-O Qe8 14. Qa5 {1-0 Swindells,J (2260)-Coates,K (2165) BCF-chT2b 1516 (4NCL) 2015 (7.253)}) 8... c6 {[%emt 0:10:06]} 9. Nxe6 {[%emt 0:00:39]} Nxe6 {[%emt 0:00:12]} 10. Ne3 {[%emt 0:02:43]} d5 {[%emt 0:04:08]} 11. exd5 {[%emt 0:00:06]} cxd5 {[%emt 0:00:05]} 12. Ba2 {[%emt 0:00:35]} O-O {[%emt 0:00:16]} 13. O-O {[%emt 0:00:28]} g6 {[%emt 0:01:08]} 14. c3 {[%emt 0:03:49]} Qd7 {[%emt 0:03:45]} 15. Nc2 {[%emt 0:00:36]} Kg7 {[%emt 0:02:37]} 16. d4 {[%emt 0:01:54]} exd4 {[%emt 0:03:24]} 17. Nxd4 {[%emt 0:00:16]} Bc5 {[%emt 0:00:56]} 18. Nf3 {[%emt 0:04:31]} Rad8 {[%emt 0:02:50]} 19. Qd2 {[%emt 0:06:39]} Rfe8 {[%emt 0:02:17]} 20. Qh6+ {[%emt 0:02:46]} Kg8 {[%emt 0:01:11]} 21. Qh4 {[%emt 0:01:03]} Ne4 {[%emt 0:02:01]} 22. Ne5 {[%emt 0:02:54]} Qc7 {[%emt 0:06:31]} 23. Nd3 {[%emt 0:01:38]} Bb6 {[%emt 0:01:29]} 24. Bh6 {[%emt 0:06:02]} Nd6 {[%emt 0:08:58]} 25. Qg3 {[%emt 0:05:18]} a5 {[%emt 0:02:22]} 26. Rad1 {[%emt 0:03:57]} Qe7 {[%emt 0:01:49]} 27. Qf3 {[%emt 0:03:37]} Ne4 {[%emt 0:03:49]} 28. g3 $1 {[%emt 0:05:10]} Qf6 {[%emt 0:02:07]} 29. Qxf6 {[%emt 0:01:50]} (29. Kg2 {seems wilder.} Qxf3+ 30. Kxf3 d4 31. Rfe1) 29... Nxf6 {[%emt 0:00:02]} 30. Kg2 {[%emt 0:02:30]} Bc7 {[%emt 0:03:04]} 31. h3 {[%emt 0:02:23]} Bd6 {[%emt 0:01:09]} 32. Be3 {[%emt 0:00:48]} b5 {[%emt 0:02:04]} 33. f4 {[%emt 0:03:19]} Nc7 {[%emt 0:02:36]} 34. Bd4 {[%emt 0:00:41]} Nd7 {[%emt 0:00:14]} 35. Bb3 {[%emt 0:02:25]} Bf8 {[%emt 0:00:36]} 36. f5 {[%emt 0:00:51]} (36. Kf3 {looks sharper.} Re6 37. g4 Bg7 38. Bf2) 36... Bg7 {[%emt 0:00:21]} 37. Bf2 {[%emt 0:01:37]} (37. Ba7 $16) 37... g5 {[%emt 0:04:46]} (37... gxf5 $14 38. Nf4 d4) 38. a4 {[%emt 0:00:51]} bxa4 {[%emt 0:00:13]} (38... Nf6 $16) 39. Bxa4 $18 {[%emt 0:00:05]} Re7 {[%emt 0:00:48]} 40. g4 {[%emt 0:03:30]} ({White should play} 40. Rfe1 $18 Rxe1 41. Rxe1 (41. Nxe1 h5 $16)) 40... d4 {[%emt 0:01:16] [#]} 41. cxd4 {[%emt 0:01:02]} ({Weaker is} 41. Bxd4 Bxd4 42. cxd4 Nb6 $11) (41. Bxd7 $142 $1 {Bc6 is the strong threat.} Rexd7 42. c4) 41... Nb6 $16 {[%emt 0:00:02] [#]} 42. Bb3 $1 {[%emt 0:00:16]} a4 {[%emt 0:00:17]} 43. Ba2 {[%emt 0:00:06]} Ncd5 {[%emt 0:01:18]} 44. Rfe1 {[%emt 0:03:35]} Rxe1 {[%emt 0:00:03]} (44... Ra7 $16) 45. Rxe1 $18 {[%emt 0:00:06]} a3 {[%emt 0:00:29]} (45... Rc8 $16 46. Kf3 h5) 46. bxa3 $18 {[%emt 0:01:06]} Ra8 {[%emt 0:00:34]} (46... Nc3 $142) 47. Nc5 {[%emt 0:02:05]} Bf8 {[%emt 0:00:02]} (47... h5 $142 48. Bxd5 (48. gxh5 Rxa3 49. Bb3 Kh7 $16) 48... Nxd5) 48. Bxd5 $18 {[%emt 0:03:10]} Nxd5 {[%emt 0:00:01]} 49. Ra1 {[%emt 0:00:28]} Nf4+ {[%emt 0:00:07]} 50. Kf3 {[%emt 0:00:08]} Nxh3 {[%emt 0:00:19]} 51. Be3 {[%emt 0:00:05]} Bd6 {[%emt 0:00:10]} 52. a4 {[%emt 0:00:08]} Nf4 {[%emt 0:00:47]} 53. Bxf4 {[%emt 0:01:05]} Bxf4 {[%emt 0:00:03]} 54. a5 {[%emt 0:00:10]} Bb8 {[%emt 0:00:12]} 55. d5 {[%emt 0:01:49]} Kg7 {[%emt 0:00:48]} 56. a6 {[%emt 0:00:58]} Ba7 {[%emt 0:00:05]} 57. Nb7 {[%emt 0:00:12]} Re8 {[%emt 0:01:49]} 58. Ra3 {[%emt 0:00:10]} h5 {[%emt 0:00:02]} 59. d6 {[%emt 0:01:04]} hxg4+ {[%emt 0:00:07]} 60. Kg3 {[%emt 0:01:25]} Bb6 {[%emt 0:02:09]} 61. Rb3 {[%emt 0:00:26]} Bd8 {[%emt 0:00:19]} 62. Nxd8 {[%emt 0:00:07]} Rxd8 {[%emt 0:00:02]} 63. a7 {[%emt 0:00:01]} 1-0

[Event "III Menorca Open-A 2024"]
[Site "Ciutadella Menorca"]
[Date "2024.04.06"]
[Round "8.4"]
[White "Krzyzanowski, Marcin"]
[Black "Alekseenko, Kirill"]
[Result "0-1"]
[ECO "C50"]
[WhiteElo "2510"]
[BlackElo "2650"]
[Annotator "TA"]
[PlyCount "120"]
[EventDate "2024.04.02"]
[EventType "swiss"]
[EventCountry "ESP"]
[SourceTitle "playchess.com"]
[Source "ChessBase"]
[SourceQuality "1"]
[TimeControl "5400+30"]

{[%evp 42,120,-33,-91,-17,-12,0,-97,-86,-108,-114,-118,-99,-119,-92,-101,-93,-188,-150,-238,-172,-188,-127,-171,-180,-216,-201,-180,-203,-224,-227,-224,-233,-231,-232,-225,-233,-212,-241,-240,-246,-235,-248,-260,-261,-261,-261,-342,-348,-370,-367,-374,-361,-368,-369,-408,-388,-548,-522,-488,-480,-506,-486,-972,-779,-889,-765,-1268,-1279,-1460,-1547,-4807,-4467,-4885,-4134,-5635,-5309,-6705,-5073,-5073,-5065]} 1. e4 {[%emt 0:00:04]} e5 {[%emt 0:00:19]} 2. Nf3 {[%emt 0:00:05]} Nc6 {[%emt 0:00:15]} 3. Bc4 {[%emt 0:00:09]} Bc5 {[%emt 0:01:01]} 4. d3 {[%emt 0:00:57]} Nf6 {[%emt 0:00:21]} 5. Nc3 {[%emt 0:00:21]} h6 {[%emt 0:00:44]} 6. O-O {[%emt 0:00:44]} O-O {[%emt 0:01:25]} 7. Be3 {[%emt 0:00:35]} Bxe3 {[%emt 0:01:25]} 8. fxe3 {[%emt 0:00:03]} d6 {[%emt 0:00:06]} 9. a3 {[%emt 0:02:55] C50: Hungarian Defence and Giuoco Pianissimo.} Be6 {[%emt 0:01:34]} 10. Nd5 {[%emt 0:07:17]} Bxd5 {[%emt 0:04:02]} 11. exd5 {[%emt 0:00:06]} Ne7 {[%emt 0:00:11]} 12. e4 {[%emt 0:04:16]} Nd7 $146 {[%emt 0:03:07]} ({Predecessor:} 12... Ng6 13. Qe1 a6 14. b4 b5 15. Bb3 c5 16. bxc5 dxc5 17. c4 Ne8 18. a4 Nd6 19. axb5 axb5 {1-0 Schulz,J-Schlosser,J CT Bishop 19815 2016}) 13. Qd2 {[%emt 0:08:16]} f5 {[%emt 0:09:50]} 14. exf5 {[%emt 0:04:51]} Nxf5 {[%emt 0:00:14]} 15. Rf2 {[%emt 0:00:52]} Qb8 {[%emt 0:09:08]} 16. a4 {[%emt 0:16:43]} a6 {[%emt 0:00:23]} 17. Kh1 {[%emt 0:02:09]} Qa7 {[%emt 0:01:15]} 18. Re1 {[%emt 0:05:57]} Rf6 {[%emt 0:01:04]} 19. c3 {[%emt 0:11:30]} Raf8 {[%emt 0:02:07]} 20. Bb3 {[%emt 0:00:45]} Kh8 {[%emt 0:13:59]} 21. Rff1 {[%emt 0:04:27]} Qb6 {[%emt 0:01:27]} (21... Nh4 $5 22. Bd1 $15) 22. Bd1 {[%emt 0:02:13]} (22. Bc4 $15) 22... Qc5 {[%emt 0:00:15]} (22... Qa5 $17 23. Kg1 Qxd5) 23. Bb3 $11 {[%emt 0:01:42]} Qb6 {[%emt 0:05:43]} ({Black should try} 23... c6 $11) 24. Bd1 $17 {[%emt 0:00:07]} Qa5 {[%emt 0:00:14]} 25. Bb3 {[%emt 0:02:26] [#]} Nd4 $1 {[%emt 0:03:29]} 26. Bd1 {[%emt 0:07:00]} (26. cxd4 $2 {perishes.} Rxf3 27. Qe2 Rxf1+ 28. Rxf1 Qb4 (28... exd4 $2 29. Rxf8+ Nxf8 30. h3 $19) 29. Rxf8+ Nxf8 $19) 26... Nxf3 {[%emt 0:00:20]} 27. Bxf3 {[%emt 0:01:07]} Qxd5 {[%emt 0:06:31]} 28. Rg1 {[%emt 0:00:21]} Qb3 {[%emt 0:00:22]} 29. Re4 {[%emt 0:00:19]} (29. a5 $17) 29... a5 {[%emt 0:01:20]} 30. Rh4 {[%emt 0:02:46]} (30. d4 $17) 30... c6 {[%emt 0:01:01]} 31. h3 {[%emt 0:01:57]} Qf7 {[%emt 0:03:52]} (31... Nc5 $19 32. Bd1 Qe6) 32. Re1 {[%emt 0:00:49]} d5 {[%emt 0:01:52]} 33. c4 {[%emt 0:00:18]} b6 {[%emt 0:08:34]} 34. cxd5 {[%emt 0:00:22]} cxd5 {[%emt 0:00:03]} 35. Qd1 {[%emt 0:01:51]} Rd6 {[%emt 0:02:58]} 36. Qd2 {[%emt 0:01:52]} Qf6 {[%emt 0:01:09]} 37. Rh5 {[%emt 0:01:27]} e4 {[%emt 0:06:07]} 38. Bg4 {[%emt 0:00:52]} Qd4 {[%emt 0:02:02]} 39. Bxd7 {[%emt 0:01:48]} Rxd7 {[%emt 0:00:05]} 40. Qe3 {[%emt 0:01:19]} Qxd3 {[%emt 0:04:51]} ({Resist} 40... Qxb2 41. dxe4 d4 42. Qd3 $17 (42. Rxh6+ $2 gxh6 43. Qxh6+ Kg8 $19)) 41. Qxd3 {[%emt 0:00:06]} exd3 {[%emt 0:00:02]} 42. Rd1 {[%emt 0:00:16] [#]} Rf4 $1 {[%emt 0:00:18]} 43. Rxd3 {[%emt 0:00:52]} Rxa4 {[%emt 0:00:34]} 44. Rhxd5 {[%emt 0:00:07]} Rxd5 {[%emt 0:00:29]} 45. Rxd5 {[%emt 0:00:02]} Rb4 {[%emt 0:00:43]} 46. Rd2 {[%emt 0:00:01]} Kh7 {[%emt 0:00:15]} 47. Kh2 {[%emt 0:04:13]} Kg6 {[%emt 0:00:03]} 48. Rf2 {[%emt 0:00:17]} Kg5 {[%emt 0:00:12]} 49. g3 {[%emt 0:00:43]} (49. Kh1 $142) 49... a4 $19 {[%emt 0:00:55]} 50. Kg2 {[%emt 0:00:22]} b5 {[%emt 0:00:11]} 51. Kf3 {[%emt 0:01:52]} Kf5 {[%emt 0:00:32]} 52. h4 {[%emt 0:02:13]} (52. Ke2+ $142 Ke5 53. Kd1) 52... Rb3+ $19 {[%emt 0:02:12]} 53. Kg2+ {[%emt 0:00:02]} Ke6 {[%emt 0:01:20]} 54. h5 {[%emt 0:00:35]} b4 {[%emt 0:00:42]} 55. Kh3 {[%emt 0:00:06]} Kd5 {[%emt 0:01:44]} 56. Kg4 {[%emt 0:00:54]} Rxb2 {[%emt 0:01:06]} 57. Rxb2 {[%emt 0:00:04]} b3 {[%emt 0:00:02]} 58. Rf2 {[%emt 0:02:32]} a3 {[%emt 0:00:09]} 59. Rf5+ {[%emt 0:00:12]} Kc4 {[%emt 0:00:14]} 60. Ra5 {[%emt 0:00:50]} a2 {[%emt 0:04:02]} 0-1

[Event "III Menorca Open-A 2024"]
[Site "Ciutadella Menorca"]
[Date "2024.04.06"]
[Round "8.5"]
[White "Chigaev, Maksim"]
[Black "Iermito, Sebastian"]
[Result "1-0"]
[ECO "C45"]
[WhiteElo "2617"]
[BlackElo "2511"]
[Annotator "TA"]
[PlyCount "107"]
[EventDate "2024.04.02"]
[EventType "swiss"]
[EventCountry "ESP"]
[SourceTitle "playchess.com"]
[Source "ChessBase"]
[SourceQuality "1"]
[TimeControl "5400+30"]

{[%evp 25,107,15,8,-4,0,0,-12,-2,25,16,43,38,41,40,37,62,37,45,41,40,50,34,93,82,142,106,130,129,145,140,147,139,139,150,139,110,256,236,343,357,362,371,362,350,375,384,496,488,556,547,588,591,584,568,584,564,502,493,1080,1032,1941,1924,1968,1592,29972,29958,29982,29983,29983,29984,29984,29985,29985,29986,29986,29987,29987,29988,29988,29989,29990,29991,29991,29990]} 1. e4 {[%emt 0:00:04]} e5 {[%emt 0:00:05]} 2. Nf3 {[%emt 0:00:05]} Nc6 {[%emt 0:00:03]} 3. d4 {[%emt 0:00:07]} exd4 {[%emt 0:00:05]} 4. Nxd4 {[%emt 0:00:05]} Bc5 {[%emt 0:00:16]} 5. Nb3 {[%emt 0:00:09]} Bb6 {[%emt 0:00:05]} 6. Nc3 {[%emt 0:01:13]} d6 {[%emt 0:00:17]} 7. Qe2 {[%emt 0:00:40]} a5 {[%emt 0:00:14] is cutting edge theory. C45: Scotch Game.} 8. a4 {[%emt 0:02:14]} Nb4 {[%emt 0:00:10]} 9. Bf4 {[%emt 0:00:53]} Qf6 {[%emt 0:00:17]} 10. Qd2 {[%emt 0:03:14]} Be6 $146 {[%emt 0:04:43]} ({Predecessor:} 10... Ne7 11. O-O-O Ng6 12. Be3 Bxe3 13. Qxe3 O-O 14. g3 Bg4 15. Be2 Bxe2 16. Qxe2 Rfe8 {½-½ Sethuraman,S (2657)-Melkumyan,H (2662) Yerevan Asrian Memorial 11th 2018 (7)}) 11. O-O-O {[%emt 0:01:57]} h6 {[%emt 0:13:57]} 12. Bb5+ {[%emt 0:13:00]} c6 {[%emt 0:00:53]} 13. Be2 {[%emt 0:00:06]} (13. Qxd6 Rd8 (13... cxb5 14. Nxb5 Ne7 15. N3d4 $15) 14. Qe5 (14. Be5 $2 Rxd6 15. Bxf6 Rxd1+ 16. Rxd1 Nxf6 $19) 14... Qxe5 (14... cxb5 15. Rxd8+ Bxd8 16. Qxb5+ Bd7 17. Qe5+ Qxe5 18. Bxe5 $17) 15. Bxe5 cxb5) 13... O-O-O $1 {[%emt 0:03:05]} 14. Be3 {[%emt 0:20:47]} Bxe3 {[%emt 0:16:32]} 15. Qxe3 {[%emt 0:00:03]} Bxb3 {[%emt 0:00:12]} 16. cxb3 {[%emt 0:00:04]} Ne7 {[%emt 0:00:58]} 17. Qa7 {[%emt 0:00:35]} Qg5+ {[%emt 0:04:30]} 18. Kb1 {[%emt 0:00:34]} Qc5 $1 {[%emt 0:53:08]} 19. Bg4+ $1 {[%emt 0:03:02]} f5 $1 {[%emt 0:00:00]} ({Don't go for} 19... Kc7 $2 20. Nb5+ (20. Qxc5 dxc5 21. g3 Rd4 $15) 20... cxb5 21. Rc1 $18 (21. Qxa5+ $2 {loses.} Kb8 $19)) 20. Bxf5+ {[%emt 0:00:32]} (20. Qxc5 {simplifies} dxc5 21. Rxd8+ Kxd8 22. Bxf5 Nxf5 23. exf5 Re8 24. Rd1+) 20... Nxf5 {[%emt 0:00:00]} 21. Qxc5 {[%emt 0:00:05]} dxc5 {[%emt 0:00:00]} 22. exf5 {[%emt 0:00:04]} Rhe8 {[%emt 0:00:00]} 23. Rxd8+ {[%emt 0:07:18]} Rxd8 {[%emt 0:00:00]} ({Black should play} 23... Kxd8 $14 24. Rd1+ Kc8) 24. Rd1 $1 $16 {[%emt 0:01:04]} Rxd1+ {[%emt 0:00:00]} 25. Nxd1 {[%emt 0:00:18]} Kd7 {[%emt 0:00:00]} 26. Ne3 {[%emt 0:02:07]} b5 {[%emt 0:00:00] [#]} 27. f3 $1 {[%emt 0:05:06]} Kd6 {[%emt 0:00:00] [#]} 28. Kc1 $1 {[%emt 0:01:54]} Ke5 {[%emt 0:00:00]} 29. Kd2 {[%emt 0:00:25]} Na6 {[%emt 0:00:00]} 30. g3 {[%emt 0:00:34]} Nb8 {[%emt 0:00:00]} (30... h5 $16 31. g4 Nb8) 31. Kd3 $18 {[%emt 0:01:28]} Nd7 {[%emt 0:00:00]} (31... h5 $142 32. f4+ Kd6) 32. f4+ $18 {[%emt 0:00:21]} Kd6 {[%emt 0:01:44]} 33. axb5 {[%emt 0:07:50]} cxb5 {[%emt 0:00:04]} 34. g4 {[%emt 0:00:04]} Nb6 {[%emt 0:03:01]} 35. h4 {[%emt 0:01:04]} a4 {[%emt 0:00:59]} 36. bxa4 {[%emt 0:01:07]} c4+ {[%emt 0:00:28]} 37. Kc2 {[%emt 0:01:48]} Nxa4 {[%emt 0:00:01]} 38. g5 {[%emt 0:03:13]} Ke7 {[%emt 0:02:50]} 39. Nd5+ {[%emt 0:02:21]} Kf8 {[%emt 0:00:06]} 40. Nc3 {[%emt 0:01:08]} Nc5 {[%emt 0:00:03]} 41. Nxb5 {[%emt 0:00:07]} Nd3 {[%emt 0:00:03]} (41... Ne4 $142 42. Nd4 h5) 42. Nd4 $18 {[%emt 0:00:50]} Kf7 {[%emt 0:01:34]} 43. Kc3 {[%emt 0:02:28]} Nxf4 {[%emt 0:00:13]} 44. Kxc4 {[%emt 0:00:04]} Ng2 {[%emt 0:00:18]} 45. b4 {[%emt 0:00:24]} Nxh4 {[%emt 0:00:36]} 46. b5 {[%emt 0:00:36]} Ke8 {[%emt 0:00:38]} 47. b6 {[%emt 0:00:33]} Kd7 {[%emt 0:00:08]} 48. f6 {[%emt 0:00:26]} gxf6 {[%emt 0:00:11]} 49. gxh6 {[%emt 0:00:02]} Kc8 {[%emt 0:00:37]} 50. h7 {[%emt 0:00:27]} Ng6 {[%emt 0:00:01]} 51. Nf5 {[%emt 0:00:16]} Nh8 {[%emt 0:00:47]} 52. Kb5 {[%emt 0:00:25]} Kb7 {[%emt 0:00:05]} 53. Nd6+ {[%emt 0:00:06]} Kb8 {[%emt 0:00:02]} 54. Ka6 {[%emt 0:00:09]} 1-0